Workbook

Sheet CashFlow
B1: 148 Benham Rd Groton, CT
B2: 24 Unit Rooming House
B4: Monthly Operating Income | C4: As-Is | D4: Year 1 Pro Forma (Rent Super) | E4: Year 2 Pro Forma | F4: Year 3 Pro Forma
B5: Number of Units | C5: 24 | D5: 24 | E5: 24 | F5: 24
B6: Average Monthly Rent per Unit | C6: 881.58 | D6: 922.91 | E6: 977 | F6: 1025
B7: Total Rental Income | C7: =C5*C6 -> 21157.92 | D7: =(900*23)+1450 -> 22150 | E7: =E5*E6 -> 23448 | F7: 24600
B8: % Vacancy and Credit Losses | C8: 0.05 | D8: 0.05 | E8: 0.05 | F8: 0.05
B9: Total Vacancy Loss | C9: =C8*C7 -> 1057.896 | D9: 1107.5 | E9: 1172.4 | F9: 1230
B10: Other Monthly Income (laundry, vending, parking, etc.)
B11: Gross Monthly Operating Income | C11: =C7-C9+C10 -> 20100.024 | D11: 21042.5 | E11: 22275.6 | F11: 23370
B13: Monthly Operating Expenses
B14: Property Management Fees ( 10%) | C14: 1080 | D14: =$D11*0.05 -> 1052.125 | E14: 1052.125 | F14: 1052.125
B15: Repairs and Maintenance | C15: 1080 | D15: =$D11*0.05 -> 1052.125 | E15: 1052.125 | F15: 1052.125
B16: Real Estate Taxes | C16: 1750 | D16: 1750 | E16: 1750 | F16: 1750
B17: Rental Property Insurance | C17: 1000 | D17: 1000 | E17: 1000 | F17: 1000
B18: Electric | C18: 729.16 | D18: 729.16 | E18: 729.16 | F18: 729.16
B19: Water + Sewer | C19: 458.33 | D19: 458.33 | E19: 458.33 | F19: 458.33
B20: Oil | C20: 750 | D20: 750 | E20: 750 | F20: 750
B21: Cleaning | D21: 500 | E21: 500 | F21: 500
B22: Internet | C22: 400 | D22: 400 | E22: 400 | F22: 400
B23: Advertising
B24: Monthly Operating Expenses | C24: =SUM(C14:C23) -> 7247.49 | D24: 7691.74 | E24: 7691.74 | F24: 7691.74
B26: Net Operating Income (NOI)
B27: Total Annual Operating Income | C27: =C11*12 -> 241200.288 | D27: 252510 | E27: 267307.2 | F27: 280440
B28: Total Annual Operating Expense | C28: =C24*12 -> 86969.88 | D28: 92300.88 | E28: 92300.88 | F28: 92300.88
B29: Annual Net Operating Income | C29: =C27-C28 -> 154230.408 | D29: 160209.12 | E29: 175006.32 | F29: 188139.12
B31: Capitalization Rate and Valuation
B32: Desired Capitalization Rate | C32: 0.075 | D32: 0.075 | E32: 0.075 | F32: 0.075
B33: Property Valuation (Offer Price) | C33: =IF(C32=0," - ",C29/C32) -> 2056405.44 | D33: 2136121.6 | E33: 2333417.6 | F33: 2508521.6
B34: Actual Purchase Price | C34: 1649000 | D34: 1649000 | E34: 1649000 | F34: 1649000
B35: Actual Capitalization Rate | C35: =IF(C34=0," - ",C29/C34) -> 0.09352965919 | D35: 0.09715531837 | E35: 0.1061287568 | F35: 0.1140928563
B37: Loan Information
B38: Down Payment | C38: 370000 | D38: 370000 | E38: 370000 | F38: 370000
B39: Loan Amount | C39: =C34-C38 -> 1279000 | D39: 1279000 | E39: 1279000 | F39: 1279000
B40: Acquisition Costs and Loan Fees
B41: Length of Mortgage (years) | C41: 30 | D41: 30 | E41: 30 | F41: 30
B42: Annual Interest Rate | C42: 0.06 | D42: 0.06 | E42: 0.06 | F42: 0.06
B43: Initial Investment | C43: =C38+C40 -> 370000 | D43: 370000 | E43: 370000 | F43: 370000
B44: Monthly Mortgage Payment (PI) | C44: =IF(C39=0,0,-PMT(C42/12,C41*12,C39)) -> 7668.251217 | D44: 7668.251217 | E44: 7668.251217 | F44: 7668.251217
B45: Annual Interest | C45: =IF(C39=0,0,-CUMIPMT(C42/12,C41*12,C39,1,12,0)) -> 76312.7448 | D45: 76312.7448 | E45: 76312.7448 | F45: 76312.7448
B46: Annual Principal | C46: =IF(C39=0,0,-CUMPRINC(C42/12,C41*12,C39,1,12,0)) -> 15706.2698 | D46: 15706.2698 | E46: 15706.2698 | F46: 15706.2698
B47: Total Annual Debt Service | C47: =C44*12 -> 92019.0146 | D47: 92019.0146 | E47: 92019.0146 | F47: 92019.0146
B49: Cash Flow and ROI
B50: Total Monthly Cash Flow (before taxes) | C50: =C11-C24-C44 -> 5184.282783 | D50: 5682.508783 | E50: 6915.608783 | F50: 8010.008783
B51: Total Annual Cash Flow (before taxes) | C51: =C29-C47 -> 62211.3934 | D51: 68190.1054 | E51: 82987.3054 | F51: 96120.1054
B52: Cash on Cash Return (ROI) | C52: =IF(C43=0," ",C51/C43) -> 0.1681389011 | D52: 0.1842975822 | E52: 0.2242900146 | F52: 0.2597840686
B54: Note: This spreadsheet should only be used for informational and educational purposes. Please verify
B55: calculations and seek professional assistance before making financial decisions.
